Cogmind - Beta 17 *** ADVENTURER MODE // 2026.07.01 @ 01:24:08 Player: ginkogruen Result: Destroyed by 87-KUH(R) with Subdweller Beam Cannon Performance ------------- Evolutions (0) 0 Regions Visited (2) 400 Robots Destroyed (27) 135 Value Destroyed (721) 721 Prototype IDs (0) 0 Alien Tech Used (0) 0 Bonus (0) 0 TOTAL SCORE: 1256 Bonus ------- None Cogmind --------- Core Integrity 0/250 Matter 120/300 Energy 100/100 System Corruption 0% Temperature Warm (168) Movement Walking (260) Ox2 Location -10/Subcaves Parts ------- > --- POWER (1) -------- (None) > --- PROPULSION (2) --- Aluminum Leg Aluminum Leg > --- UTILITY (2) ------ High-capacity Storage Unit > --- WEAPON (2) ------- Grenade Launcher Mini Grenade Launcher > --- INVENTORY (20) --- Ion Engine Ion Engine Ion Engine Light Ion Engine Aluminum Leg Aluminum Leg Small Storage Unit Huge Storage Unit High-capacity Matter Pod (200) High-capacity Matter Pod (191) Subdweller Optics Sensor Array Sensor Array Makeshift Light Armor Plating Makeshift Kinetic Plating EM Pulse Gun Grenade Launcher Mini Grenade Launcher Mini Grenade Launcher Makeshift Spear Peak State ------------ > --- POWER ------------ Subdweller Power Source > --- PROPULSION ------- Aluminum Leg Aluminum Leg > --- UTILITY ---------- High-capacity Storage Unit Structural Scanner > --- WEAPON ----------- Mini Grenade Launcher Mini Grenade Launcher > --- INVENTORY -------- Ion Engine Ion Engine Ion Engine Light Ion Engine Aluminum Leg Aluminum Leg Small Storage Unit Huge Storage Unit High-capacity Matter Pod High-capacity Matter Pod Subdweller Optics Sensor Array Sensor Array Makeshift Light Armor Plating Makeshift Kinetic Plating EM Pulse Gun Grenade Launcher Mini Grenade Launcher Mini Grenade Launcher Makeshift Spear [Rating: 13] Favorites ----------- Power Light Nuclear Core Engine Ion Engine Power Core Light Nuclear Core Propulsion Aluminum Leg Leg Aluminum Leg Utility High-capacity Storage Unit Device Structural Scanner Storage High-capacity Storage Unit Weapon Mini Grenade Launcher Energy Gun EM Pulse Gun Ballistic Gun Light Assault Rifle Launcher Mini Grenade Launcher Build | -11 -10 -10 ------- Run | Yrd Mat Sub Slots Evolved . | . . . Power . | . . . Propulsion . | . . . Utility . | . . . Weapon . | . . . Parts Attached 19 | 6 7 6 Power 4 | 1 1 2 Engine 3 | 1 . 2 Core 1 | . 1 . Reactor . | . . . Propulsion 4 | 2 1 1 Treads . | . . . Leg 4 | 2 1 1 Wheel . | . . . Hover . | . . . Flight . | . . . Utility 3 | 1 2 . Device 1 | . 1 . Storage 2 | 1 1 . Processor . | . . . Hackware . | . . . Protection . | . . . Artifact . | . . . Weapon 8 | 2 3 3 Energy Gun 2 | 2 . . Energy Cannon . | . . . Ballistic Gun 1 | . 1 . Ballistic Cannon . | . . . Launcher 5 | . 2 3 Special Weapon . | . . . Impact Weapon . | . . . Slashing Weapon . | . . . Piercing Weapon . | . . . Special Melee Weapon . | . . . Unidentified Prototypes . | . . . Parts Lost 5 | . 1 4 Power 2 | . . 2 Propulsion 1 | . . 1 Utility 1 | . . 1 Weapon 1 | . 1 . Highest Loss Streak 2 | . 1 2 To Critical Strikes . | . . . Average Backups 15 | 1 11 19 Power 3 | . 3 4 Propulsion 1 | . 1 2 Utility 6 | . 4 8 Weapon 3 | . 3 5 Tool/Special . | . . . Unused Backups 14 | . . 14 Power 3 | . . 3 Propulsion 1 | . . 1 Utility 8 | . . 8 Weapon 2 | . . 2 Tool/Special . | . . . Average Slot Usage (%) 97 | . 97 98 Engine 8 | . 7 10 Core 4 | . 6 2 Leg 28 | . 28 28 Device 12 | . 11 14 Storage 14 | . 14 14 Energy Gun 6 | . 12 . Launcher 20 | . 14 28 Peak Build Rating 13 | 6 12 13 Average Rating 10 | 4 9 11 On Entrance 6 | . 6 12 Avg Prop Armor Cover (%) . | . . . Naked Turns . | . . . Heaviest Build 50 | 14 50 50 Greatest Support 20 | 20 20 20 Greatest Overweight (x) 3 | 3 2 2 Average Overweight (x) 1 | . 1 2 Largest Inventory Capacity 20 | 8 20 20 Average Capacity 19 | 7 19 20 Most Carried 20 | 2 18 20 Average Carried 15 | 1 11 19 Final Capacity 20 | 8 20 20 Final Carried 20 | 2 18 20 Class Distribution -------------------- 100% | Mutant Dominant Class ---------------- Mutant | -10/Materials Mutant | -10/Subcaves Resources | -11 -10 -10 ----------- Run | Yrd Mat Sub Matter Collected 1112 | 217 373 522 Remotely . | . . . Salvage Created 647 | . 500 147 Parts 36 | . 25 11 Haulers Intercepted 1 | . 1 . Recyclers Shooed . | . . . Parts Field Recycled . | . . . Retrieved Matter . | . . . Parts Self-Destructed 21 | . . 21 Prevented . | . . . Parts Restored . | . . . Kills | -11 -10 -10 ------- Run | Yrd Mat Sub Combat Hostiles Destroyed 20 | . 11 9 Guns 8 | . 8 . AOE 12 | . 3 9 Classes Destroyed 9 | . 7 2 Worker 1 | . 1 . Builder 1 | . 1 . Hauler 1 | . 1 . Recycler 1 | . 1 . Watcher 3 | . 3 . Swarmer 6 | . 5 1 Grunt 7 | . 6 1 Sentry 1 | . . 1 Subdweller 6 | . . 6 Best Kill Streak 6 | . 6 3 Combat Bots Only 4 | . 4 3 Max Kills in Single Turn 2 | . 2 1 Gunslinging 1 | . 1 . Exploded 2 | . 2 1 Melee . | . . . Uniques/NPCs Destroyed . | . . . Combat | -11 -10 -10 -------- Run | Yrd Mat Sub Hostile Shots Fired 69 | . 45 24 Missed 25 | . 19 6 Hits 44 | . 26 18 Projectile 44 | . 26 18 Critical Strikes 3 | . 1 2 Damage Taken 957 | . 366 591 Core 257 | . 86 171 Absorbed by Shields . | . . . Ignored by Resistances 260 | . 108 152 Regen/Repaired (Parts) 144 | . 144 . Core Remaining (%) 100 | 100 . . Volleys Fired 49 | . 29 20 Largest 2 | . 2 2 Hottest 80 | . 80 60 Shots Fired 98 | . 58 40 Gun 46 | . 46 . Cannon . | . . . Launcher 52 | . 12 40 Special . | . . . Kinetic 4 | . 4 . Thermal . | . . . Explosive 52 | . 12 40 Electromagnetic 42 | . 42 . Robot Hit Streak 17 | . 17 9 Robot Miss Streak 3 | . 3 1 Penetration Max . | . . . Secondary Targets 1 | . 1 . Max Gunslinging Chain 1 | . 1 . Shots Hit Robots 69 | . 39 30 Core Hits 50 | . 28 22 Critical Kills . | . . . Critical Parts Destroyed . | . . . Critical Strikes 1 | . 1 . Corrupt 1 | . 1 . Melee Attacks . | . . . Impact . | . . . Slashing . | . . . Piercing . | . . . Sneak Attacks . | . . . Combat Hostiles . | . . . Follow-up Attacks . | . . . Damage Inflicted 3206 | . 1139 2067 Guns 425 | . 425 . Cannons . | . . . Explosions 2775 | . 708 2067 Melee . | . . . Ramming 6 | . 6 . Kinetic 27 | . 27 . Thermal 326 | . 326 . Explosive 2449 | . 382 2067 Electromagnetic 398 | . 398 . Impact . | . . . Slashing . | . . . Piercing . | . . . Highest Corruption . | . . . Average Corruption . | . . . Corruption Purged . | . . . Corruption Blocked . | . . . Overload Shots . | . . . Overflow Damage 105 | . 53 52 Projectiles . | . . . Explosions 105 | . 53 52 Melee . | . . . Knockbacks . | . . . Impact . | . . . Kinetic . | . . . Secondary . | . . . Self-Inflicted Damage 421 | . 149 272 Shots 24 | . 9 15 Rammed . | . . . Targets Rammed 2 | . 2 . Kicked 2 | . 2 . Crushed . | . . . Highest Temperature 184 | . 94 184 Average Temperature 30 | . 27 116 Received Heat Transfer 428 | . 114 314 Siege Activations . | . . . Martial Activations . | . . . Shielding Activations . | . . . Robots Disrupted . | . . . Combat Hostiles . | . . . Robots Corrupted . | . . . Combat Hostiles . | . . . Parts Fried 1 | . 1 . Impact Corruptions . | . . . Robots Melted . | . . . Combat Hostiles . | . . . Parts Melted . | . . . Heat Transferred 350 | . 350 . Parts Sabotaged . | . . . Parts Stolen . | . . . Parts Stripped . | . . . Power Chain Reactions 4 | . 4 . Alert | -11 -10 -10 ------- Run | Yrd Mat Sub Maximum Alert Level . | . . . Low Security (%) 100 | 100 100 . Level 1 . | . . . Level 2 . | . . . Level 3 . | . . . Level 4 . | . . . Level 5 . | . . . High Security . | . . . Max Security . | . . . Peak Influence 105 | . 105 . Initial . | . . . Average 13 | . 14 . Influence Increases 489 | . 429 60 Destroy 0b10 Robot/C 280 | . 220 60 Destroy 0b10 Robot/NC 35 | . 35 . Destroy Leader 48 | . 48 . Successful Hack 8 | . 8 . Disable Machine 45 | . 45 . Destroy Structure 58 | . 58 . Lose Combat Pursuer 15 | . 15 . Influence Decreases 489 | . 427 62 Entered New Map 2 | . . 2 Time Decay 477 | . 417 60 Lost Part 10 | . 10 . Squads Dispatched . | . . . Investigation . | . . . Extermination . | . . . Reinforcement . | . . . Assault . | . . . Garrison . | . . . Intercept . | . . . Searches Triggered . | . . . Construction Impeded . | . . . Haulers Reinforced . | . . . Active Scanning Responses . | . . . Cargo Convoy Interrupts . | . . . Stealth | -11 -10 -10 --------- Run | Yrd Mat Sub Distress Signals 2 | . 2 . Communications Jammed . | . . . Distress Signals . | . . . Times Spotted 29 | . 20 9 Peak Tracking Total 3 | . 3 3 Tactical Retreats 1 | . 1 . Traps | -11 -10 -10 ------- Run | Yrd Mat Sub Traps Triggered 2 | . 1 1 Indirectly . | . . . Trap Hack Attempts . | . . . Triggered . | . . . Disarmed . | . . . Reprogrammed . | . . . Reused . | . . . Traps Extracted . | . . . Installed . | . . . Triggered . | . . . Machines | -11 -10 -10 ---------- Run | Yrd Mat Sub Machines Disabled 5 | . 5 . Max in Single Turn 2 | . 2 . Machines Repaired . | . . . Machines Dismantled . | . . . Machines Sabotaged . | . . . Overloaded Fab Kills . | . . . Hacking | -11 -10 -10 --------- Run | Yrd Mat Sub Machines Accessed 3 | . 3 . Terminals 2 | . 2 . Fabricators . | . . . Repair Stations 1 | . 1 . Recycling Units . | . . . Scanalyzers . | . . . Garrison Access . | . . . Total Hacks 8 | . 8 . Successful 6 | . 6 . Failed 2 | . 2 . Catastrophic 1 | . 1 . Database Lockouts . | . . . Manual . | . . . Terminals 3 | . 3 . Fabricators . | . . . Repair Stations 5 | . 5 . Recycling Units . | . . . Scanalyzers . | . . . Garrison Access . | . . . Terminal Hacks 1 | . 1 . Robot Analysis 1 | . 1 . Fabricator Hacks . | . . . Repair Station Hacks 5 | . 5 . Scan Component 3 | . 3 . Repair 2 | . 2 . Recycling Unit Hacks . | . . . Scanalyzer . | . . . Garrison Access Hacks . | . . . Unauthorized Hacks . | . . . Terminals . | . . . Fabricators . | . . . Repair Stations . | . . . Recycling Units . | . . . Scanalyzers . | . . . Garrison Access . | . . . Data Cores Recovered . | . . . Used . | . . . Hacking Detections 2 | . 2 . Full Trace Events . | . . . Feedback Events . | . . . Feedback Blocked . | . . . Robot Schematics Acquired . | . . . Robots Built . | . . . Authchips . | . . . Time . | . . . Total Robot Build Rating . | . . . Part Schematics Acquired . | . . . Parts Built . | . . . Authchips . | . . . Time . | . . . Total Part Build Rating . | . . . Part Studies Acquired . | . . . Parts Repaired 2 | . 2 . Time 52 | . 52 . Parts Recycled . | . . . Recycled Matter . | . . . Retrieved Matter . | . . . Retrieved Components . | . . . Parts Scanalyzed . | . . . Part Schematics Acquired . | . . . Parts Damaged . | . . . Bothacking | -11 -10 -10 ------------ Run | Yrd Mat Sub Used RIF Installer . | . . . Robots Hacked . | . . . Non-combat . | . . . Combat . | . . . Robot Hacks Applied . | . . . Relay Couplers Released . | . . . Fabnet Peak Effective % . | . . . Robots Rewired . | . . . Allies Hacked . | . . . Hacks Repelled . | . . . Allies | -11 -10 -10 -------- Run | Yrd Mat Sub Total Allies . | . . . Largest Group . | . . . Highest-Rated Group . | . . . Highest-Rated Ally . | . . . Total Orders . | . . . Ally Attacks . | . . . Total Damage . | . . . Kills . | . . . Allies Corrupted . | . . . Allies Melted . | . . . Intel | -11 -10 -10 ------- Run | Yrd Mat Sub Active Infowar (turns) 4187 | . 1963 2224 Structural 4187 | . 1963 2224 Robot Analysis Total 1 | . 1 . Derelict Logs Recovered 1 | . . 1 Drone Launches . | . . . Drone Recoveries . | . . . Exploration | -11 -10 -10 ------------- Run | Yrd Mat Sub Turns Passed 4645 | 57 2363 2225 Spaces Moved 1711 | 37 848 826 Core 13 | 13 . . Treads . | . . . Legs 1698 | 24 848 826 Wheels . | . . . Hover . | . . . Flight . | . . . Fastest Speed 50 | 50 120 260 Average Speed 254 | 127 254 260 Slowest Speed 260 | 200 260 260 Overloaded Moves . | . . . Propulsion Burnouts . | . . . Robots Hopped . | . . . Potential Cave-ins 2 | . 2 . Cave-ins Triggered . | . . . Exploration Rate (%) 51 | 4 97 54 Regions Visited 2 Branch Regions 1 Pre-discovered Areas . | . . . Known Exits Taken . | . . . Unknown Exits Taken 2 | 1 1 . Scrap Searched 4 | . . 4 Spaces Dug 46 | . 46 . Terrain Destroyed 292 | . 72 220 Melee . | . . . Projectile . | . . . AOE 292 | . 72 220 Terrain Rammed . | . . . Walls Destroyed . | . . . Machines Disabled . | . . . Actions | -11 -10 -10 --------- Run | Yrd Mat Sub Total 1898 | 44 992 862 Wait 90 | . 87 3 Move 1709 | 36 847 826 Hop . | . . . Pick Up 24 | 2 17 5 Fast Attach 8 | 6 2 . Attach 4 | . 2 2 Detach 1 | . 1 . Swap 9 | . 5 4 Drop 2 | . . 2 Fire 49 | . 29 20 Melee . | . . . Ram . | . . . Kick 2 | . 2 . Crush . | . . . Escape Stasis . | . . . Rewire . | . . . Trap . | . . . Miscellaneous . | . . . Route ------- -11/Scrapyard -10/Materials (discovered 5 exits: [*Mat x3] / [*Min] / [*Sub]) -10/Subcaves (discovered 2 exits: *Mat x2) History --------- Turn | Location | Event 20 | -11/Scrapyard | Discovered new exit (range 16) 58 | -11/Scrapyard | Entered Materials 312 | -10/Materials | Build established: Mutant 614 | -10/Materials | Discovered new exit (range 6) 1078 | -10/Materials | Discovered new exit (range 13) 1362 | -10/Materials | Discovered new exit (range 16) 1932 | -10/Materials | Discovered new exit (range 9) 2126 | -10/Materials | Repaired Aluminum Leg? 2311 | -10/Materials | Repaired Aluminum Leg 2335 | -10/Materials | Discovered new exit (range 9) 2421 | -10/Materials | Entered Subcaves 2421 | -10/Subcaves | Discovered new exit (range 6) 2422 | -10/Subcaves | Ambushed by Subdwellers from Twisted Machinery 2688 | -10/Subcaves | Shifting Twisted Machinery released Mak. Spear 2709 | -10/Subcaves | Shifting Twisted Machinery released Mak. Light Armor Plating 2979 | -10/Subcaves | Core integrity fell below 50% 3091 | -10/Subcaves | Shifting Twisted Machinery released Battle Rifle 3093 | -10/Subcaves | Shifting Twisted Machinery released Sub. Beam Cannon 3341 | -10/Subcaves | Shifting Twisted Machinery released Battle Cannon 3342 | -10/Subcaves | Shifting Twisted Machinery released Battle Rifle 4255 | -10/Subcaves | Identified exit to Materials 4639 | -10/Subcaves | Ambushed by Subdweller buried in earth 4641 | -10/Subcaves | Core integrity fell below 20% 4646 | -10/Subcaves | Destroyed by 87-KUH(R) with Subdweller Beam Cannon Last Messages --------------- 04531_ G-34 Mercenary destroyed. 04533_ Critical hit (Burn: +37). 04534_ Y-45 Defender destroyed. 04539_ The unstable cave ceiling collapses. 04618_ NG-X1Y(R) destroyed. 04624_ The unstable cave ceiling collapses. 04624_ XP-CVQ(R) destroyed. 04629_ The unstable cave ceiling collapses. 04631_ Subatomizers dissect the Disposable Heat Sink, destroying it. 04632_ The unstable cave ceiling collapses. 04637_ Acquired Grenade Launcher. 04639_ The unstable cave ceiling collapses. [Achievement: Do Not Disturb] 04640_ 87-KUH(R): "ARGHSUB!" 04642_ 0Q-01F(R) destroyed. 04642_ Sub. Power Source destroyed. 04644_ Critical hit (Meltdown: +200). 04645_ Structural Scanner destroyed. 04645_ Destroyed Structural Scanner. 04646_ The unstable cave ceiling collapses. Map ----- +----------------------------------------------------+ | | | | | | | | | | | ??????????????????????????????????????????? | | ??????????????????????????????????????????? | | ??????????????????????????????????????????? | | ??????????????????????????????????????????? | | ??????????????????????????????????????????? | | ??????????????????????????????????????????? | | ??????????????????????????????????????????? | | ??????????????????????????????????????????? | | ??????????????????????????????????????????? | | ??????????????????????????????????????????? | | ??????????????????????????????????????????? | | ?????????????#######??????????????????????? | | ????????????########??????????????????????? | | ????????????### ## ###??################### | | ????????????## ######################## | | ???????????### ###### ### # #### | | ???????????### #### ### | | ???????????## # # # ### | | ???????????## # ## ### | | ???????????### # ## #### | | ??????????### @! ## ### | | ??????????## ## ## | | ??????????## ### ## | | ??????????## ## ## | | ??????????### R < # ### #### | | ??????????## # #### #### | | ??????????### ###### #### | | ??????????### ## ############ | | ???????????### #############?############ | | ???????????###################????????##### | | ????????????######????????????????????????? | | ??????????????????????????????????????????? | | ??????????????????????????????????????????? | | ??????????????????#####???????????????????? | | ?????????????????######???????????????????? | | ????????????????#### ##???????????????????? | | ???????????????#### ##???????????????????? | | ??????????????#### ##???????????????????? | | ??????????????### ##???????????????????? | | ??????????????## ##???????????????????? | | ??????????????## ##???????????????????? | | ??????????????## ##???????????????????? | | ??????????????### ######?????######????? | | ??????????????##### ######????############ | | ???????????????#### ##???#### ####### | +----------------------------------------------------+ Best States ------------- Heat Dissipation 25 Energy Generation 15 Energy Capacity 250 Matter Stores 300 Matter Capacity 300 Sight Range 16 Terrain Scan Density 10 Resistance: KI 20 Resistance: TH 20 Resistance: EX 20 Resistance: EM 20 Resistance: I 20 Resistance: S 20 Resistance: P 20 Evasion (%) 55 Offensive Hacking 10 Item Schematics ----------------- None Robot Schematics ------------------ None Fabricated ------------ Nothing Repaired ---------- Aluminum Leg | 7% | -10/Materials Aluminum Leg | 32% | -10/Materials Studied --------- None Alien Tech Used ----------------- None Achievements -------------- Do Not Disturb Challenges ------------ None Game ------ Seed CarbideArmorCharger Manual? 0 Play Time 00:26:26 Cumulative 16.7 hours Start 2026.07.01 @ 01:00:16 End 2026.07.01 @ 01:24:08 Sessions 1 Manual Loads 0 Difficulty Adventurer Special Mode None Game No. 22 Rogue 8 Adventurer 14 Explorer 0 Win Type - Total 0 Types 0/0/0/0/0/0/0/0/0/0 Lore% 16 Gallery% 12 Achievement% 12 Wizard Run 0 Options --------- Layout 0 ASCII 0 Keyboard 1 Movement Vi Keybinds 0 Fullscreen 1 Font 24/Smallcaps Map View 76x50 Zoom Use 0% Tactical HUD 1 Map Filters NONE Filters NONE Steam 1 RUN: 634d3474-b279-40eb-8281-3013892258a0